fUSD/lending_fUSD_20250417
["ID","MTS","AMOUNT","RATE_DAILY","PERIOD"]
[358222538,1744855849536,-500.0,0.00052054,120]
[358222539,1744855849546,-1606.32,0.00052054,120]
[358222540,1744855849556,-500.0,0.00052054,120]
[358222541,1744855849565,-500.0,0.00052054,120]
[358222542,1744855849575,-524.9373241,0.00052054,120]
[358222543,1744855849585,-635.92,0.00052054,120]
[358222544,1744855849597,-536.79,0.00052054,120]
[358222545,1744855849607,-500.0,0.00052054,120]
[358222546,1744855849616,-500.0,0.00052054,120]
[358222547,1744855849627,-509.09812977,0.00052054,120]
[358222548,1744855849636,-500.0,0.00052054,120]
[358222549,1744855849646,-1004.38,0.00052054,120]
[358222550,1744855849656,-547.06,0.00052054,120]
[358222551,1744855849668,-1229.72,0.00052054,120]
[358222552,1744855849677,-300.0,0.00052054,120]
[358222553,1744855849687,-500.0,0.00052054,120]
[358222554,1744855849695,-815.75,0.00052054,120]
[358222555,1744855849704,-500.0,0.00052054,120]
[358222556,1744855849713,-535.36057959,0.00052054,120]
[358222557,1744855849724,-500.0,0.00052054,120]
[358222558,1744855849733,-500.0,0.00052054,120]
[358222559,1744855849743,-1285.67,0.00052054,120]
[358222560,1744855849753,-500.0,0.00052054,120]
[358222561,1744855849763,-500.0,0.00052054,120]
[358222562,1744855849772,-500.0,0.00052054,120]
[358222563,1744855849782,-500.0,0.00052054,120]
[358222564,1744855849792,-500.0,0.00052054,120]
[358222565,1744855849802,-500.0,0.00052054,120]
[358222566,1744855849811,-967.81,0.00052054,120]
[358222567,1744855849821,-500.0,0.00052054,120]
[358222568,1744855849830,-500.0,0.00052054,120]
[358222569,1744855849840,-512.38,0.00052054,120]
[358222570,1744855849850,-512.53271795,0.00052054,120]
[358222571,1744855849859,-786.77,0.00052054,120]
[358222572,1744855849868,-500.0,0.00052054,120]
[358222573,1744855849879,-541.64491342,0.00052054,120]
[358222574,1744855849888,-500.0,0.00052054,120]
[358222575,1744855849898,-512.68048181,0.00052054,120]
[358222576,1744855849908,-500.0,0.00052054,120]
[358222577,1744855849919,-500.0,0.00052054,120]
[358222578,1744855849928,-500.0,0.00052054,120]
[358222579,1744855849938,-500.0,0.00052054,120]
[358222580,1744855849948,-510.2630053,0.00052054,120]
[358222581,1744855849958,-1006.42,0.00052054,120]
[358222582,1744855849967,-500.0,0.00052054,120]
[358222583,1744855849977,-540.98,0.00052054,120]
[358222584,1744855849986,-749.48,0.00052054,120]
[358222585,1744855849995,-500.0,0.00052054,120]
[358222586,1744855850005,-500.0,0.00052054,120]
[358222587,1744855850015,-500.0,0.00052054,120]
[358222588,1744855850024,-500.0,0.00052054,120]
[358222589,1744855850034,-734.83,0.00052054,120]
[358222590,1744855850043,-500.0,0.00052054,120]
[358222591,1744855850053,-391.62657447,0.00052054,120]
[358222592,1744855850062,-500.0,0.00052054,120]
[358222593,1744855850073,-500.0,0.00052054,120]
[358222594,1744855850082,-620.12,0.00052054,120]
[358222595,1744855850092,-500.0,0.00052054,120]
[358222596,1744855850102,-500.0,0.00052054,120]
[358222597,1744855850112,-500.0,0.00052054,120]
[358222598,1744855850122,-500.0,0.00052054,120]
[358222599,1744855850132,-626.31,0.00052054,120]
[358222600,1744855850142,-563.09311967,0.00052054,120]
[358222601,1744855850151,-500.0,0.00052054,120]
[358222602,1744855850161,-500.0,0.00052054,120]
[358222603,1744855850172,-213.42513392,0.00052054,120]
[358222604,1744855850182,-931.87,0.00052054,120]
[358222605,1744855850192,-508.34983254,0.00052054,120]
[358222606,1744855850201,-500.0,0.00052054,120]
[358222607,1744855850211,-500.0,0.00052054,120]
[358222608,1744855850220,-500.0,0.00052054,120]
[358222609,1744855850230,-500.0,0.00052054,120]
[358222610,1744855850240,-500.0,0.00052054,120]
[358222611,1744855850250,-500.0,0.00052054,120]
[358222612,1744855850261,-948.66,0.00052054,120]
[358222613,1744855850272,-506.4296917,0.00052054,120]
[358222614,1744855850282,-500.0,0.00052054,120]
[358222615,1744855850291,-580.68273406,0.00052054,120]
[358222616,1744855850301,-620.50933452,0.00052054,120]
[358222617,1744855850311,-585.84,0.00052054,120]
[358222618,1744855850321,-500.0,0.00052054,120]
[358222619,1744855850331,-500.0,0.00052054,120]
[358222620,1744855850340,-500.0,0.00052054,120]
[358222621,1744855850350,-500.0,0.00052054,120]
[358222622,1744855850359,-500.0,0.00052054,120]
[358222623,1744855850369,-2000.0,0.00052054,2]
[358222624,1744855850378,-500.0,0.00052054,120]
[358222625,1744855850388,-500.0,0.00052054,120]
[358222626,1744855850397,-503.2907728,0.00052054,120]
[358222627,1744855850407,-500.0,0.00052054,120]
[358222628,1744855850416,-1745.12,0.00052054,120]
[358222629,1744855850425,-500.0,0.00052054,120]
[358222630,1744855850435,-500.0,0.00052054,120]
[358222631,1744855850444,-500.0,0.00052054,120]
[358222632,1744855850456,-619.88,0.00052054,120]
[358222633,1744855850466,-500.0,0.00052054,120]
[358222634,1744855850476,-500.0,0.00052054,120]
[358222635,1744855850486,-500.0,0.00052054,120]
[358222636,1744855850496,-505.565163,0.00052054,120]
[358222637,1744855850505,-500.0,0.00052054,120]
[358222638,1744855850514,-500.0,0.00052054,120]
[358222639,1744855850523,-1016.03,0.00052054,120]
[358222640,1744855850532,-500.0,0.00052054,120]
[358222641,1744855850540,-768.33,0.00052054,120]
[358222642,1744855850549,-500.0,0.00052054,120]
[358222643,1744855850559,-500.0,0.00052054,120]
[358222644,1744855850567,-500.0,0.00052054,120]
[358222645,1744855850577,-1401.05,0.00052054,120]
[358222646,1744855850586,-605.96200558,0.00052054,120]
[358222647,1744855850598,-500.0,0.00052054,120]
[358222648,1744855850607,-1518.97,0.00052054,120]
[358222649,1744855850617,-500.0,0.00052054,2]
[358222650,1744855850626,-500.0,0.00052054,2]
[358222651,1744855850637,-500.0,0.00052054,2]
[358222652,1744855850646,-500.0,0.00052054,2]
[358222653,1744855850655,-500.0,0.00052054,2]
[358222654,1744855850665,-500.0,0.00052054,120]
[358222655,1744855850676,-1795.71,0.00052054,120]
[358222656,1744855850687,-500.0,0.00052054,120]
[358222657,1744855850696,-500.0,0.00052054,120]
[358222658,1744855850706,-500.0,0.00052054,120]
[358222659,1744855850715,-551.53,0.00052054,120]
[358222660,1744855850724,-500.0,0.00052054,120]
[358222661,1744855850734,-689.66,0.00052054,120]
[358222662,1744855850744,-500.0,0.00052054,120]
[358222663,1744855850754,-500.0,0.00052054,120]
[358222664,1744855850764,-500.0,0.00052054,120]
[358222665,1744855850773,-500.0,0.00052054,120]
[358222666,1744855850783,-500.0,0.00052054,120]
[358222667,1744855850792,-500.0,0.00052054,120]
[358222668,1744855850801,-500.0,0.00052054,120]
[358222669,1744855850811,-500.0,0.00052054,120]
[358222670,1744855850821,-342.2513661,0.00052054,120]
[358222671,1744855850830,-500.0,0.00052054,120]
[358222672,1744855850840,-500.0,0.00052054,120]
[358222673,1744855850850,-500.0,0.00052054,120]
[358222674,1744855850859,-500.0,0.00052054,120]
[358222675,1744855850869,-1486.31,0.00052054,120]
[358222676,1744855850879,-1884.26,0.00052054,120]
[358222677,1744855850888,-500.0,0.00052054,30]
[358222678,1744855850898,-334.86580897,0.00052054,120]
[358222679,1744855850907,-500.0,0.00052054,120]
[358222680,1744855850917,-500.0,0.00052054,120]
[358222681,1744855850927,-702.21,0.00052054,120]
[358222682,1744855850937,-500.0,0.00052054,120]
[358222683,1744855850946,-502.72803303,0.00052054,120]
[358222684,1744855850955,-500.0,0.00052054,7]
[358222685,1744855850965,-500.0,0.00052054,120]
[358222686,1744855850974,-597.64575,0.00052054,120]
[358222687,1744855850983,-500.0,0.00052054,120]
[358222688,1744855850993,-500.0,0.00052054,120]
[358222689,1744855851002,-500.0,0.00052054,120]
[358222690,1744855851012,-1188.19,0.00052054,120]
[358222691,1744855851022,-609.40453123,0.00052054,120]
[358222692,1744855851031,-933.77,0.00052054,120]
[358222693,1744855851041,-500.0,0.00052054,120]
[358222694,1744855851050,-500.0,0.00052054,120]
[358222695,1744855851060,-500.0,0.00052054,120]
[358222696,1744855851070,-500.0,0.00052054,120]
[358222697,1744855851079,-500.0,0.00052054,120]
[358222698,1744855851089,-734.94,0.00052054,120]
[358222699,1744855851099,-500.0,0.00052054,120]
[358222700,1744855851109,-500.0,0.00052054,120]
[358222701,1744855851118,-500.0,0.00052054,120]
[358222702,1744855851128,-500.0,0.00052054,120]
[358222703,1744855851137,-500.0,0.00052054,120]
[358222704,1744855851146,-502.11328213,0.00052054,120]
[358222705,1744855851154,-500.0,0.00052054,120]
[358222706,1744855851163,-1715.99,0.00052054,120]
[358222707,1744855851172,-526.04401918,0.00052054,120]
[358222708,1744855851180,-500.0,0.00052054,120]
[358222709,1744855851189,-500.0,0.00052054,120]
[358222710,1744855851197,-500.0,0.00052054,120]
[358222711,1744855851207,-152.58627112,0.00052054,120]
[358222712,1744855851216,-500.0,0.00052054,120]
[358222713,1744855851225,-841.92,0.00052054,120]
[358222714,1744855851234,-500.0,0.00052054,120]
[358222715,1744855851243,-500.0,0.00052054,120]
[358222716,1744855851252,-540.13665422,0.00052054,120]
[358222717,1744855851262,-579.55,0.00052054,120]
[358222718,1744855851271,-343.34991642,0.00052054,120]
[358222719,1744855851280,-500.0,0.00052054,120]
[358222720,1744855851290,-500.0,0.00052054,120]
[358222721,1744855851299,-500.0,0.00052054,120]
[358222722,1744855851308,-500.0,0.00052054,120]
[358222723,1744855851317,-500.0,0.00052054,120]
[358222724,1744855851327,-712.53,0.00052054,120]
[358222725,1744855851336,-500.0,0.00052054,120]
[358222726,1744855851346,-500.0,0.00052054,120]
[358222727,1744855851355,-500.0,0.00052054,120]
[358222728,1744855851365,-522.50121025,0.00052054,120]
[358222729,1744855851374,-500.0,0.00052054,120]
[358222730,1744855851383,-500.0,0.00052054,120]
[358222731,1744855851393,-500.0,0.00052054,120]
[358222732,1744855851403,-500.0,0.00052054,120]
[358222733,1744855851412,-1355.52,0.00052054,120]
[358222734,1744855851422,-500.0,0.00052054,120]
[358222735,1744855851431,-807.47,0.00052054,120]
[358222736,1744855851441,-500.0,0.00052054,120]
[358222737,1744855851451,-2044.09,0.00052054,120]
[358222738,1744855851460,-500.0,0.00052054,120]
[358222739,1744855851470,-500.0,0.00052054,120]
[358222740,1744855851479,-500.0,0.00052054,120]
[358222741,1744855851488,-500.0,0.00052054,120]
[358222742,1744855851497,-500.0,0.00052054,120]
[358222743,1744855851507,-564.18,0.00052054,120]
[358222744,1744855851516,-504.59175884,0.00052054,120]
[358222745,1744855851525,-500.0,0.00052054,120]
[358222746,1744855851534,-500.0,0.00052054,120]
[358222747,1744855851543,-500.0,0.00052054,120]
[358222748,1744855851552,-500.0,0.00052054,120]
[358222749,1744855851562,-500.0,0.00052054,120]
[358222750,1744855851572,-449.87315776,0.00052054,120]
[358222751,1744855851582,-1361.37,0.00052054,120]
[358222752,1744855851594,-500.0,0.00052054,120]
[358222753,1744855851603,-500.0,0.00052054,120]
[358222754,1744855851613,-1096.67,0.00052054,120]
[358222755,1744855851622,-500.0,0.00052054,120]
[358222756,1744855851633,-500.0,0.00052054,120]
[358222757,1744855851643,-292.41501172,0.00052054,120]
[358222758,1744855851652,-500.0,0.00052054,120]
[358222759,1744855851662,-500.0,0.00052054,120]
[358222760,1744855851673,-500.0,0.00052054,120]
[358222761,1744855851683,-163.66163459,0.00052054,120]
[358222762,1744855851692,-670.01,0.00052054,120]
[358222763,1744855851702,-334.53837722,0.00052054,120]
[358222764,1744855851712,-500.0,0.00052054,120]
[358222765,1744855851721,-500.0,0.00052054,120]
[358222766,1744855851730,-500.0,0.00052054,120]
[358222767,1744855851740,-500.0,0.00052054,120]
[358222768,1744855851749,-514.92806154,0.00052054,120]
[358222769,1744855851806,-500.0,0.00052054,120]
[358222770,1744855851815,-500.0,0.00052054,120]
[358222771,1744855851824,-500.0,0.00052054,120]
[358222772,1744855851833,-500.0,0.00052054,120]
[358222773,1744855851843,-636.37730557,0.00052054,120]
[358222774,1744855851852,-500.0,0.00052054,120]
[358222775,1744855851861,-500.0,0.00052054,120]
[358222776,1744855851870,-598.93,0.00052054,15]
[358222777,1744855851879,-500.0,0.00052054,120]
[358222778,1744855851888,-720.42,0.00052054,120]
[358222779,1744855851897,-500.0,0.00052054,120]
[358222780,1744855851906,-500.0,0.00052054,120]
[358222781,1744855851915,-282.14464237,0.00052054,120]
[358222782,1744855851925,-500.0,0.00052054,120]
[358222783,1744855851934,-500.0,0.00052054,120]
[358222784,1744855851943,-1389.64,0.00052054,120]
[358222785,1744855851952,-500.0,0.00052054,120]
[358222786,1744855851962,-504.24960348,0.00052054,120]
[358222787,1744855851971,-500.0,0.00052054,120]
[358222788,1744855851980,-500.0,0.00052054,120]
[358222789,1744855851989,-500.0,0.00052054,120]
[358222790,1744855851998,-500.0,0.00052054,120]
[358222791,1744855852007,-647.5,0.00052054,120]
[358222792,1744855852016,-500.0,0.00052054,120]
[358222793,1744855852026,-530.8,0.00052054,120]
[358222794,1744855852035,-500.0,0.00052054,120]
[358222795,1744855852043,-500.0,0.00052054,120]
[358222796,1744855852053,-500.0,0.00052054,120]
[358222797,1744855852063,-422.86868737,0.00052054,120]
[358222798,1744855852072,-542.70458262,0.00052054,120]
[358222799,1744855852082,-545.02,0.00052054,120]
[358222800,1744855852091,-500.0,0.00052054,120]
[358222801,1744855852100,-500.0,0.00052054,120]
[358222802,1744855852109,-206.68,0.00052054,120]
[358222803,1744855852119,-538.48813162,0.00052054,120]
[358222804,1744855852128,-500.0,0.00052054,120]
[358222805,1744855852137,-538.55404646,0.00052054,120]
[358222806,1744855852146,-649.94,0.00052054,120]
[358222807,1744855852155,-619.65,0.00052054,120]
[358222808,1744855852166,-500.0,0.00052054,120]
[358222809,1744855852174,-500.0,0.00052054,120]
[358222810,1744855852183,-500.0,0.00052054,120]
[358222811,1744855852192,-507.04200256,0.00052054,120]
[358222812,1744855852201,-500.0,0.00052054,120]
[358222813,1744855852210,-513.27724811,0.00052054,120]
[358222814,1744855852219,-500.0,0.00052054,120]
[358222815,1744855852229,-500.0,0.00052054,120]
[358222816,1744855852238,-500.0,0.00052054,120]
[358222817,1744855852248,-598.607806,0.00052054,120]
[358222818,1744855852256,-500.0,0.00052054,120]
[358222819,1744855852266,-500.0,0.00052054,120]
[358222820,1744855852276,-618.22411025,0.00052054,120]
[358222821,1744855852284,-500.0,0.00052054,120]
[358222822,1744855852293,-500.0,0.00052054,120]
[358222823,1744855852301,-500.0,0.00052054,120]
[358222824,1744855852310,-500.0,0.00052054,120]
[358222825,1744855852319,-500.0,0.00052054,120]
[358222826,1744855852329,-1400.87,0.00052054,120]
[358222827,1744855852338,-500.0,0.00052054,120]
[358222828,1744855852346,-500.0,0.00052054,120]
[358222829,1744855852355,-558.26815928,0.00052054,120]
[358222830,1744855852365,-500.0,0.00052054,120]
[358222831,1744855852374,-645.71105941,0.00052054,120]
[358222832,1744855852384,-500.0,0.00052054,120]
[358222833,1744855852393,-500.0,0.00052054,120]
[358222834,1744855852402,-500.0,0.00052054,120]
[358222835,1744855852411,-500.0,0.00052054,120]
[358222836,1744855852422,-500.0,0.00052054,120]
[358222837,1744855852431,-500.0,0.00052054,120]
[358222838,1744855852440,-495.76578131,0.00052054,120]
[358222839,1744855852450,-500.0,0.00052054,120]
[358222840,1744855852459,-564.18,0.00052054,120]
[358222841,1744855852468,-918.21,0.00052054,30]
[358222842,1744855852478,-500.0,0.00052054,120]
[358222843,1744855852487,-500.0,0.00052054,120]
[358222844,1744855852496,-500.0,0.00052054,120]
[358222845,1744855852505,-532.77895725,0.00052054,120]
[358222846,1744855852515,-601.97,0.00052054,120]
[358222847,1744855852524,-500.0,0.00052054,120]
[358222848,1744855852533,-506.34100699,0.00052054,120]
[358222849,1744855852543,-500.0,0.00052054,120]
[358222850,1744855852553,-500.0,0.00052054,120]
[358222851,1744855852563,-514.09710677,0.00052054,120]
[358222852,1744855852572,-500.0,0.00052054,120]
[358222853,1744855852582,-500.0,0.00052054,120]
[358222854,1744855852596,-537.57192845,0.00052054,120]
[358222855,1744855852606,-500.0,0.00052054,120]
[358222856,1744855852616,-500.0,0.00052054,120]
[358222857,1744855852625,-500.0,0.00052054,120]
[358222858,1744855852637,-500.0,0.00052054,120]
[358222859,1744855852647,-500.0,0.00052054,120]
[358222860,1744855852655,-500.0,0.00052054,120]
[358222861,1744855852663,-500.0,0.00052054,120]
[358222862,1744855852674,-500.0,0.00052054,120]
[358222863,1744855852683,-500.0,0.00052054,120]
[358222864,1744855852693,-741.44,0.00052054,120]
[358222865,1744855852702,-500.0,0.00052054,120]
[358222866,1744855852712,-500.0,0.00052054,120]
[358222867,1744855852721,-500.0,0.00052054,120]
[358222868,1744855852730,-500.0,0.00052054,120]
[358222869,1744855852739,-500.0,0.00052054,120]
[358222870,1744855852749,-1960.17,0.00052054,120]
[358222871,1744855852758,-500.0,0.00052054,120]
[358222872,1744855852768,-500.0,0.00052054,120]
[358222873,1744855852777,-500.0,0.00052054,120]
[358222874,1744855852786,-500.0,0.00052054,120]
[358222875,1744855852795,-383.17139798,0.00052054,120]
[358222876,1744855852805,-500.0,0.00052054,120]
[358222877,1744855852814,-729.02,0.00052054,120]
[358222878,1744855852823,-786.1,0.00052054,120]
[358222879,1744855852833,-500.0,0.00052054,120]
[358222880,1744855852843,-500.0,0.00052054,120]
[358222881,1744855852852,-500.0,0.00052054,120]
[358222882,1744855852861,-500.0,0.00052054,120]
[358222883,1744855852870,-500.0,0.00052054,120]
[358222884,1744855852879,-755.73,0.00052054,120]
[358222885,1744855852888,-500.0,0.00052054,120]
[358222886,1744855852897,-562.56671709,0.00052054,120]
[358222887,1744855852907,-500.0,0.00052054,120]
[358222888,1744855852916,-601.97,0.00052054,120]
[358222889,1744855852926,-500.0,0.00052054,120]
[358222890,1744855852935,-500.0,0.00052054,120]
[358222891,1744855852943,-500.0,0.00052054,120]
[358222892,1744855852952,-507.28063271,0.00052054,120]
[358222893,1744855852961,-755.13,0.00052054,120]
[358222894,1744855852971,-500.0,0.00052054,120]
[358222895,1744855852980,-979.55,0.00052054,120]
[358222896,1744855852989,-500.0,0.00052054,120]
[358222897,1744855852999,-500.0,0.00052054,120]
[358222898,1744855853008,-500.0,0.00052054,120]
[358222899,1744855853017,-500.0,0.00052054,120]
[358222900,1744855853026,-500.0,0.00052054,120]
[358222901,1744855853035,-874.390318,0.00052054,120]
[358222902,1744855853044,-500.0,0.00052054,120]
[358222903,1744855853053,-500.0,0.00052054,120]
[358222904,1744855853062,-500.0,0.00052054,120]
[358222905,1744855853071,-500.0,0.00052054,120]
[358222906,1744855853080,-500.0,0.00052054,120]
[358222907,1744855853090,-500.0,0.00052054,120]
[358222908,1744855853099,-500.0,0.00052054,120]
[358222909,1744855853109,-618.37,0.00052054,120]
[358222910,1744855853118,-500.0,0.00052054,120]
[358222911,1744855853127,-500.0,0.00052054,120]
[358222912,1744855853137,-500.0,0.00052054,120]
[358222913,1744855853147,-508.10895732,0.00052054,120]
[358222914,1744855853157,-500.0,0.00052054,120]
[358222915,1744855853166,-639.64,0.00052054,120]
[358222916,1744855853176,-500.0,0.00052054,120]
[358222917,1744855853186,-519.51861559,0.00052054,120]
[358222918,1744855853195,-500.0,0.00052054,120]
[358222919,1744855853204,-500.0,0.00052054,120]
[358222920,1744855853213,-836.26,0.00052054,120]
[358222921,1744855853222,-500.0,0.00052054,120]
[358222922,1744855853231,-500.0,0.00052054,120]
[358222923,1744855853240,-500.0,0.00052054,120]
[358222924,1744855853249,-500.0,0.00052054,120]
[358222925,1744855853258,-903.78,0.00052054,120]
[358222926,1744855853267,-500.0,0.00052054,120]
[358222927,1744855853276,-500.0,0.00052054,120]
[358222928,1744855853285,-1684.31,0.00052054,120]
[358222929,1744855853295,-507.99417988,0.00052054,60]
[358222930,1744855853304,-500.0,0.00052054,120]
[358222931,1744855853314,-500.0,0.00052054,120]
[358222932,1744855853325,-500.0,0.00052054,120]
[358222933,1744855853334,-500.0,0.00052054,120]
[358222934,1744855853343,-500.0,0.00052054,120]
[358222935,1744855853353,-500.0,0.00052054,120]
[358222936,1744855853362,-500.0,0.00052054,120]
[358222937,1744855853371,-500.0,0.00052054,120]
[358222938,1744855853382,-500.0,0.00052054,120]
[358222939,1744855853391,-500.0,0.00052054,120]
[358222940,1744855853401,-500.0,0.00052054,120]
[358222941,1744855853411,-500.0,0.00052054,120]
[358222942,1744855853420,-500.0,0.00052054,120]
[358222943,1744855853429,-531.23,0.00052054,120]
[358222944,1744855853439,-1998.32,0.00052054,120]
[358222945,1744855853448,-500.0,0.00052054,120]
[358222946,1744855853457,-579.5,0.00052054,120]
[358222947,1744855853466,-500.0,0.00052054,120]
[358222948,1744855853475,-500.0,0.00052054,120]
[358222949,1744855853484,-1038.19,0.00052054,120]
[358222950,1744855853493,-500.0,0.00052054,120]
[358222951,1744855853503,-500.0,0.00052054,120]
[358222952,1744855853513,-523.33417002,0.00052054,120]
[358222953,1744855853523,-547.53667076,0.00052054,120]
[358222954,1744855853533,-500.0,0.00052054,120]
[358222955,1744855853542,-500.0,0.00052054,120]
[358222956,1744855853553,-568.5899117,0.00052054,120]
[358222957,1744855853562,-500.0,0.00052054,120]
[358222958,1744855853571,-500.0,0.00052054,120]
[358222959,1744855853581,-500.0,0.00052054,120]
[358222960,1744855853593,-500.0,0.00052054,120]
[358222961,1744855853603,-500.0,0.00052054,120]
[358222962,1744855853612,-509.29199816,0.00052054,120]
[358222963,1744855853620,-568.53281738,0.00052054,120]
[358222964,1744855853631,-513.93076484,0.00052054,120]
[358222965,1744855853640,-710.83,0.00052054,2]
[358222966,1744855853650,-760.83,0.00052054,120]
[358222967,1744855853659,-500.0,0.00052054,120]
[358222968,1744855853670,-500.0,0.00052054,120]
[358222969,1744855853679,-500.0,0.00052054,120]
[358222970,1744855853689,-500.0,0.00052054,120]
[358222971,1744855853699,-656.51,0.00052054,118]
[358222972,1744855853710,-500.0,0.00052054,120]
[358222973,1744855853720,-500.0,0.00052054,120]
[358222974,1744855853729,-500.0,0.00052054,120]
[358222975,1744855853738,-500.0,0.00052054,120]
[358222976,1744855853747,-500.0,0.00052054,120]
[358222977,1744855853758,-500.0,0.00052054,120]
[358222978,1744855853768,-500.0,0.00052054,120]
[358222979,1744855853778,-606.11,0.00052054,120]
[358222980,1744855853788,-500.0,0.00052054,120]
[358222981,1744855853798,-500.0,0.00052054,120]
[358222982,1744855853808,-500.0,0.00052054,120]
[358222983,1744855853818,-500.0,0.00052054,120]
[358222984,1744855853828,-500.0,0.00052054,120]
[358222985,1744855853839,-1290.25,0.00052054,120]
[358222986,1744855853848,-500.0,0.00052054,120]
[358222987,1744855853858,-856.03,0.00052054,120]
[358222988,1744855853867,-581.60833347,0.00052054,120]
[358222989,1744855853876,-500.0,0.00052054,120]
[358222990,1744855853885,-500.0,0.00052054,120]
[358222991,1744855853894,-500.0,0.00052054,120]
[358222992,1744855853902,-500.0,0.00052054,120]
[358222993,1744855853913,-500.0,0.00052054,120]
[358222994,1744855853924,-500.0,0.00052054,120]
[358222995,1744855853934,-1079.56,0.00052054,120]
[358222996,1744855853944,-500.0,0.00052054,120]
[358222997,1744855853954,-500.0,0.00052054,120]
[358222998,1744855853964,-500.0,0.00052054,120]
[358222999,1744855853975,-1026.24,0.00052054,120]
[358223000,1744855853985,-1032.44,0.00052054,120]
[358223001,1744855853995,-1000.0,0.00052054,120]
[358223002,1744855854005,-500.0,0.00052054,120]
[358223003,1744855854015,-500.0,0.00052054,120]
[358223004,1744855854024,-521.60860771,0.00052054,120]
[358223005,1744855854034,-500.0,0.00052054,120]
[358223006,1744855854043,-500.0,0.00052054,120]
[358223007,1744855854054,-500.0,0.00052054,120]
[358223008,1744855854064,-500.0,0.00052054,120]
[358223009,1744855854075,-1155.66,0.00052054,120]
[358223010,1744855854085,-500.0,0.00052054,120]
[358223011,1744855854095,-1125.33,0.00052054,120]
[358223012,1744855854104,-500.0,0.00052054,120]
[358223013,1744855854114,-500.0,0.00052054,120]
[358223014,1744855854124,-531.11865327,0.00052054,120]
[358223015,1744855854134,-500.0,0.00052054,120]
[358223016,1744855854144,-500.0,0.00052054,120]
[358223017,1744855854154,-155.383724,0.00052054,120]
[358223018,1744855854163,-500.0,0.00052054,120]
[358223019,1744855854174,-500.0,0.00052054,120]
[358223020,1744855854184,-500.0,0.00052054,120]
[358223021,1744855854194,-500.0,0.00052054,120]
[358223022,1744855854204,-1282.86,0.00052054,120]
[358223023,1744855854214,-500.0,0.00052054,120]
[358223024,1744855854224,-876.07,0.00052054,120]
[358223025,1744855854233,-500.0,0.00052054,120]
[358223026,1744855854243,-506.74940126,0.00052054,120]
[358223027,1744855854253,-500.0,0.00052054,120]
[358223028,1744855854263,-391.01992061,0.00052054,120]
[358223029,1744855854274,-500.0,0.00052054,120]
[358223030,1744855854283,-505.74075797,0.00052054,120]
[358223031,1744855854293,-1185.69,0.00052054,120]
[358223032,1744855854303,-500.0,0.00052054,120]
[358223033,1744855854313,-500.0,0.00052054,120]
[358223034,1744855854323,-500.0,0.00052054,120]
[358223035,1744855854332,-500.0,0.00052054,120]
[358223036,1744855854342,-150.37069584,0.00052054,120]
[358223037,1744855854352,-500.0,0.00052054,120]